fUSD/lending_fUSD_20260203
["ID","MTS","AMOUNT","RATE_DAILY","PERIOD"]
[404462850,1770157841989,-1000.0,0.00017278,2]
[404462852,1770157841998,-1000.0,0.00017278,2]
[404462854,1770157842007,-1000.0,0.00017278,2]
[404462856,1770157842016,-1000.0,0.00017278,2]
[404462858,1770157842025,-1000.0,0.00017278,2]
[404462860,1770157842034,-1000.0,0.00017278,2]
[404462862,1770157842043,-502.73500783,0.00017278,2]
[404462865,1770157842060,-1000.0,0.00017278,2]
[404462867,1770157842072,-1000.0,0.00017278,2]
[404462869,1770157842083,-487.32196984,0.00017278,2]
[404462871,1770157842092,-995.9953446,0.00017278,2]
[404462873,1770157842101,-1000.0,0.00017278,2]
[404462875,1770157842111,-1000.0,0.00017278,2]
[404462877,1770157842122,-1000.0,0.00017278,2]
[404462880,1770157842132,-150.0,0.00017387,2]
[404462881,1770157842142,-1271.0,0.00017387,2]
[404462883,1770157842151,-3207.0,0.00017484,2]
[404462886,1770157842162,-3207.0,0.00017498,2]
[404462888,1770157842171,-13360.3851429,0.000175,2]
[404462890,1770157842182,-500.91,0.00017534,2]
[404462892,1770157842192,-1000.0,0.00017534,2]
[404462894,1770157842201,-500.0,0.00017562,2]
[404462896,1770157842211,-5426.0,0.00017583,2]
[404462898,1770157842221,-5526.0,0.000176,2]
[404462900,1770157842230,-563.58815186,0.00017639,2]
[404462902,1770157842241,-293.93728109,0.0001764,2]
[404462904,1770157842251,-839.0,0.0001768,2]
[404462906,1770157842261,-839.0,0.0001768,2]
[404462908,1770157842271,-839.0,0.0001768,2]
[404462911,1770157842281,-1000.0,0.00017709,2]
[404462914,1770157842291,-225.18697532,0.0001771,2]
[404462917,1770157842302,-225.18697532,0.0001771,2]
[404462920,1770157842311,-200.0,0.0001771,2]
[404462921,1770157842320,-187.78006525,0.0001771,2]
[404462924,1770157842330,-298.26089446,0.0001771,2]
[404462926,1770157842339,-1536.04360649,0.0001771,2]
[404462928,1770157842349,-3207.0,0.00017746,2]
[404462930,1770157842358,-500.91,0.00017808,2]
[404462932,1770157842368,-250.0,0.00017808,5]
[404462934,1770157842379,-250.0,0.00017808,5]
[404462936,1770157842388,-250.0,0.00017808,5]
[404462938,1770157842398,-250.0,0.00017808,5]
[404462940,1770157842407,-250.0,0.00017808,5]
[404462942,1770157842417,-250.0,0.00017808,5]
[404462944,1770157842426,-250.0,0.00017808,5]
[404462946,1770157842436,-169.800792,0.00017808,5]
[404462948,1770157842446,-1000.0,0.00017808,2]
[404462950,1770157842456,-917.0,0.00017812,2]
[404462952,1770157842466,-1205.0,0.00017812,2]
[404462954,1770157842475,-568.0,0.00017812,2]
[404462956,1770157842485,-1316.0,0.00017812,2]
[404462959,1770157842495,-2471.026,0.00017812,2]
[404462961,1770157842505,-2000.0,0.0001782,2]
[404462963,1770157842515,-2000.0,0.0001782,2]
[404462965,1770157842526,-2000.0,0.0001782,2]
[404462967,1770157842536,-2000.0,0.0001782,2]
[404462969,1770157842547,-634.52409023,0.0001782,2]
[404462971,1770157842556,-1500.0,0.00017826,2]
[404462973,1770157842566,-496.09583646,0.00017826,2]
[404462975,1770157842575,-1500.0,0.00017826,2]
[404462977,1770157842585,-465.16495418,0.00017826,2]
[404462979,1770157842594,-1500.0,0.00017826,2]
[404462981,1770157842603,-1500.0,0.00017826,2]
[404462983,1770157842613,-1501.46388009,0.00017826,2]
[404462985,1770157842624,-1500.0,0.00017826,2]
[404462987,1770157842637,-1451.590897,0.00017826,2]
[404462989,1770157842647,-1371.81162767,0.00017826,2]
[404462991,1770157842656,-1500.0,0.00017826,2]
[404462993,1770157842667,-504.38832369,0.00017826,2]
[404462995,1770157842676,-1500.0,0.00017826,2]
[404462997,1770157842688,-1500.0,0.00017826,2]
[404462999,1770157842699,-500.92,0.00017855,2]
[404463001,1770157842709,-500.0,0.00017855,2]
[404463004,1770157842719,-160.0,0.00017856,3]
[404463006,1770157842728,-162.721333,0.00017865,2]
[404463008,1770157842738,-370.340611,0.00017865,2]
[404463009,1770157842747,-370.340611,0.00017865,2]
[404463012,1770157842756,-370.340611,0.00017865,2]
[404463014,1770157842766,-370.340611,0.00017865,2]
[404463016,1770157842775,-3207.0,0.00017876,2]
[404463018,1770157842784,-151.0,0.00017882,2]
[404463020,1770157842793,-151.0,0.00017882,2]
[404463022,1770157842803,-3207.0,0.00017887,2]
[404463024,1770157842813,-5487.0,0.00017895,2]
[404463026,1770157842822,-500.92,0.00017899,2]
[404463028,1770157842832,-500.0,0.00017899,2]
[404463030,1770157842841,-500.0,0.000179,2]
[404463031,1770157842851,-35017.37247939,0.000179,2]
[404463034,1770157842860,-8176.81510389,0.000179,3]
[404463036,1770157842869,-3177.54188177,0.000179,2]
[404463038,1770157842880,-25000.0,0.000179,3]
[404463040,1770157842890,-173.83287322,0.000179,2]
[404463041,1770157842900,-465.94256547,0.000179,2]
[404463043,1770157842910,-13360.3851429,0.000179,2]
[404463045,1770157842920,-150.0,0.00017973,2]
[404463048,1770157842930,-334.5472959,0.00017983,2]
[404463050,1770157842940,-151.0,0.00017987,2]
[404463052,1770157842949,-151.0,0.0001799,2]
[404463054,1770157842959,-151.0,0.0001799,2]
[404463056,1770157842969,-727.682145,0.0001799,2]
[404463058,1770157842979,-727.682145,0.0001799,2]
[404463060,1770157842989,-727.682145,0.0001799,2]
[404463062,1770157842998,-727.682145,0.0001799,2]
[404463064,1770157843008,-164122.81790217,0.0001799,3]
[404463066,1770157843017,-776.347707,0.0001799,2]
[404463067,1770157843026,-776.347707,0.0001799,2]
[404463069,1770157843036,-776.347707,0.0001799,2]
[404463072,1770157843046,-776.347707,0.0001799,2]
[404463073,1770157843057,-244.954932,0.0001799,2]
[404463075,1770157843068,-244.954932,0.0001799,2]
[404463077,1770157843078,-244.954932,0.0001799,2]
[404463080,1770157843087,-244.954932,0.0001799,2]
[404463082,1770157843098,-1532.017703,0.0001799,2]
[404463083,1770157843107,-198.894125,0.0001799,2]
[404463086,1770157843118,-151.0,0.0001799,2]
[404463088,1770157843130,-1532.017703,0.0001799,2]
[404463090,1770157843140,-198.894125,0.0001799,2]
[404463092,1770157843150,-151.0,0.0001799,2]
[404463094,1770157843160,-1532.017703,0.0001799,2]
[404463098,1770157843169,-948.911815,0.0001799,2]
[404463101,1770157843178,-198.894125,0.0001799,2]
[404463106,1770157843187,-151.0,0.0001799,2]
[404463108,1770157843197,-1532.017703,0.0001799,2]
[404463110,1770157843206,-948.911815,0.0001799,2]
[404463114,1770157843215,-198.894125,0.0001799,2]
[404463117,1770157843224,-948.911815,0.0001799,2]
[404463119,1770157843233,-948.911815,0.0001799,2]
[404463123,1770157843243,-198218.365455,0.0001799,2]
[404463125,1770157843252,-151.0,0.00017997,2]
[404463127,1770157843262,-300.0,0.00017999,2]
[404463128,1770157843271,-500.92,0.00017999,2]
[404463130,1770157843280,-500.92,0.00017999,2]
[404463132,1770157843289,-500.92,0.00017999,2]
[404463134,1770157843298,-500.92,0.00017999,2]
[404463136,1770157843308,-500.92,0.00017999,2]
[404463138,1770157843317,-500.92,0.00017999,2]
[404463140,1770157843326,-500.92,0.00017999,2]
[404463142,1770157843335,-500.92,0.00017999,2]
[404463144,1770157843344,-500.92,0.00017999,2]
[404463147,1770157843353,-500.92,0.00017999,2]
[404463149,1770157843363,-500.92,0.00017999,2]
[404463151,1770157843372,-501.11007115,0.00017999,2]
[404463153,1770157843382,-500.0,0.00017999,2]
[404463155,1770157843391,-500.0,0.00017999,2]
[404463157,1770157843400,-500.0,0.00017999,2]
[404463159,1770157843409,-500.0,0.00017999,2]
[404463161,1770157843419,-500.0,0.00017999,2]
[404463163,1770157843429,-500.0,0.00017999,2]
[404463165,1770157843438,-558.31479011,0.00017999,2]
[404463167,1770157843447,-300.0,0.00017999,2]
[404463168,1770157843456,-666.0,0.00017999,2]
[404463170,1770157843466,-300.0,0.00017999,2]
[404463172,1770157843475,-300.0,0.00017999,2]
[404463174,1770157843485,-300.0,0.00017999,2]
[404463177,1770157843494,-963661.34764031,0.00018,2]
[404463180,1770157843516,-436.75223375,0.00018,2]
[404463182,1770157843530,-3327.24737571,0.00018,2]
[404463187,1770157843557,-251.80538329,0.00018,2]
[404463189,1770157843569,-351.88118535,0.00018,2]
[404463196,1770157844063,-5162.82916256,0.00017812,2]
[404463197,1770157844074,-1417.17083744,0.00017812,2]
[404463198,1770157844084,-3202.67862856,0.00018,2]
[404463199,1770157844099,-506.37642362,0.00018,2]
[404463200,1770157844110,-275.42144754,0.00018,2]
[404463201,1770157844121,-1361.29,0.00018,2]
[404463202,1770157844133,-27708.10213746,0.00018,2]
[404463203,1770157844151,-8995.57510499,0.00018,2]
[404463204,1770157844201,-854.0836,0.00018,2]
[404463205,1770157844223,-680015.97685801,0.00018,2]
[404463206,1770157844233,-2962314.04942664,0.00018,2]
[404463207,1770157844242,-2000.88772904,0.00018,2]
[404463208,1770157844252,-180.33941038,0.00018,2]
[404463209,1770157844261,-3433507.0675798,0.00018,2]
[404463210,1770157844961,-218.55774193,0.00016475,2]
[404463211,1770157844971,-928.23725807,0.00018,2]
[404463212,1770157844983,-3144.17828415,0.00018,2]
[404463213,1770157844995,-4197.18904291,0.00018,2]
[404463214,1770157845006,-410.39994,0.00018,2]
[404463215,1770157845018,-345.0,0.00018,2]
[404463223,1770157845655,-1149.0,0.00018,2]
[404463224,1770157845744,-3653.91761244,0.00018,2]
[404463225,1770157845941,-845.0,0.00018,2]
[404463293,1770158747787,153.17,7.297e-05,2]
[404463312,1770159031712,-378.23771447,8.511e-05,2]
[404463313,1770159031725,-1147.81628553,8.511e-05,2]
[404463314,1770159031734,-162.705,8.511e-05,2]
[404463315,1770159031744,-250.0,8.536e-05,2]
[404463316,1770159031754,-493.3638194,8.584e-05,2]
[404463317,1770159031765,-150.0,8.584e-05,2]
[404463318,1770159031774,-1200.0,8.584e-05,2]
[404463319,1770159031784,-383.11489507,8.585e-05,2]
[404463320,1770159031811,-88851.71478184,8.585e-05,2]
[404463321,1770159031824,-334.9295531,8.585e-05,2]
[404463322,1770159031897,-804.0,8.585e-05,2]
[404463334,1770159037692,-3409626.24076999,8.585e-05,2]
[404463335,1770159037703,-1469.33180051,8.609e-05,2]
[404463336,1770159037712,-10000.0,8.685e-05,2]
[404463337,1770159037722,-250.0,9.362e-05,2]
[404463338,1770159037731,-250.0,9.362e-05,2]
[404463339,1770159037740,-255.0,9.442e-05,2]
[404463341,1770159037749,-1680.0,9.442e-05,2]
[404463342,1770159037758,-227.95839479,0.0001,2]
[404463343,1770159037768,-181.06962449,0.0001,2]
[404463344,1770159037777,-29528.89970188,0.00010215,2]
[404463345,1770159037786,-331.0,0.00010387,2]
[404463346,1770159037795,-2351.0,0.00010387,2]
[404463347,1770159037804,-501.60267843,0.00011017,2]
[404463348,1770159037814,-500.0,0.00011017,2]
[404463349,1770159037823,-500.0,0.00011017,2]
[404463350,1770159037832,-500.0,0.00011017,2]
[404463351,1770159037842,-500.0,0.00011017,2]
[404463352,1770159037852,-500.0,0.00011017,2]
[404463353,1770159037861,-500.0,0.00011017,2]
[404463354,1770159037870,-421.78920043,0.00011017,2]
[404463355,1770159037879,-206.81893181,0.00011017,2]
[404463356,1770159037889,-500.0,0.00011017,2]
[404463357,1770159037899,-500.0,0.00011017,2]
[404463358,1770159037910,-500.0,0.00011017,2]
[404463359,1770159037919,-500.0,0.00011017,2]
[404463360,1770159037928,-500.33188348,0.00011017,2]
[404463361,1770159037938,-500.0,0.00011017,2]
[404463362,1770159037947,-500.38367155,0.00011017,2]
[404463363,1770159037956,-327.51512711,0.00011099,2]
[404463364,1770159037969,-327.51512705,0.00011099,2]
[404463365,1770159037978,-327.51512705,0.00011099,2]
[404463366,1770159037987,-636.08170446,0.00011099,2]
[404463368,1770159037997,-636.0817044,0.00011099,2]
[404463370,1770159038007,-636.0817044,0.00011099,2]
[404463372,1770159038017,-150.0,0.00011122,2]
[404463374,1770159038027,-200.0,0.00011131,2]
[404463375,1770159038037,-500.0,0.00011131,2]
[404463376,1770159038046,-500.0,0.00011131,2]
[404463377,1770159038056,-151.0,0.00011131,2]
[404463378,1770159038065,-500.0,0.00011131,2]
[404463379,1770159038075,-500.0,0.00011131,2]
[404463380,1770159038084,-151.0,0.00011131,2]
[404463381,1770159038094,-500.0,0.00011131,2]
[404463382,1770159038104,-151.0,0.00011131,2]
[404463383,1770159038114,-500.0,0.00011131,2]
[404463384,1770159038123,-151.0,0.00011131,2]
[404463385,1770159038132,-500.0,0.00011131,2]
[404463386,1770159038143,-151.0,0.00011131,2]
[404463387,1770159038152,-500.0,0.00011131,2]
[404463388,1770159038162,-151.0,0.00011131,2]
[404463390,1770159038171,-500.0,0.00011131,2]
[404463392,1770159038180,-151.0,0.00011131,2]
[404463394,1770159038189,-500.0,0.00011131,2]
[404463396,1770159038198,-151.0,0.00011131,2]
[404463398,1770159038208,-500.0,0.00011131,2]
[404463400,1770159038219,-151.0,0.00011131,2]
[404463402,1770159038229,-151.0,0.00011131,2]
[404463404,1770159038238,-151.0,0.00011131,2]
[404463406,1770159038247,-151.0,0.00011131,2]
[404463408,1770159038256,-151.0,0.00011131,2]
[404463410,1770159038265,-151.0,0.00011131,2]
[404463412,1770159038275,-500.0,0.00011131,2]
[404463414,1770159038284,-151.0,0.00011131,2]
[404463416,1770159038293,-151.0,0.00011131,2]
[404463418,1770159038302,-200.0,0.00011131,2]
[404463420,1770159038312,-151.0,0.00011131,2]
[404463422,1770159038321,-151.0,0.00011131,2]
[404463424,1770159038331,-151.0,0.00011131,2]
[404463426,1770159038340,-151.0,0.00011131,2]
[404463428,1770159038348,-500.0,0.00011131,2]
[404463430,1770159038358,-500.0,0.00011131,2]
[404463432,1770159038367,-500.0,0.00011131,2]
[404463433,1770159038377,-500.0,0.00011131,2]
[404463435,1770159038386,-500.0,0.00011131,2]
[404463437,1770159038396,-500.0,0.00011131,2]
[404463439,1770159038405,-500.0,0.00011131,2]
[404463441,1770159038415,-500.0,0.00011131,2]
[404463443,1770159038424,-151.0,0.00011131,2]
[404463445,1770159038434,-151.0,0.00011131,2]
[404463447,1770159038443,-151.0,0.00011131,2]
[404463449,1770159038452,-151.0,0.00011131,2]
[404463451,1770159038462,-151.0,0.00011131,2]
[404463454,1770159038474,-151.0,0.00011131,2]
[404463456,1770159038483,-151.0,0.00011131,2]
[404463458,1770159038491,-151.0,0.00011131,2]
[404463460,1770159038500,-151.0,0.00011131,2]
[404463462,1770159038509,-151.0,0.00011131,2]
[404463464,1770159038518,-151.0,0.00011131,2]
[404463466,1770159038527,-500.0,0.00011131,2]
[404463468,1770159038536,-62456.39,0.00011137,2]
[404463470,1770159038545,-250.0,0.00011246,2]
[404463472,1770159038554,-556.0,0.00011252,2]
[404463473,1770159038563,-500.0,0.00011282,2]
[404463476,1770159038573,-500.0,0.00011405,2]
[404463478,1770159038582,-470.0,0.00011425,2]
[404463480,1770159038591,-500.0,0.00011565,2]
[404463481,1770159038600,-727.81084573,0.00011565,2]
[404463483,1770159038610,-636.0817044,0.00011639,2]
[404463486,1770159038620,-327.51512705,0.00011639,2]
[404463488,1770159038630,-500.0,0.00011679,2]
[404463489,1770159038639,-200.0,0.00011679,2]
[404463491,1770159038648,-500.0,0.00011953,2]
[404463493,1770159038657,-150.99,0.00012087,2]
[404463495,1770159038666,-9999.99,0.00012087,2]
[404463497,1770159038675,-500.0,0.00012227,2]
[404463499,1770159038684,-500.0,0.00012501,2]
[404463501,1770159038693,-33292.3487,0.0001259,2]
[404463503,1770159038702,-1000.0,0.0001259,2]
[404463505,1770159038713,-636.0817044,0.00012683,2]
[404463507,1770159038723,-304.06352763,0.00012745,2]
[404463509,1770159038732,-268.89,0.00012856,2]
[404463511,1770159038741,-497.49589099,0.00012957,2]
[404463514,1770159038753,-1312.89952747,0.00012957,2]
[404463516,1770159038763,-2316.11038942,0.00012957,2]
[404463518,1770159038773,-2500.0,0.00013039,2]
[404463520,1770159038783,-4583.81,0.00013139,2]
[404463522,1770159038792,-227.95839479,0.00013205,2]
[404463524,1770159038802,-1469.3318005,0.00013205,2]
[404463526,1770159038811,-488.0,0.0001337,2]
[404463528,1770159038819,-3240.0,0.00013425,2]
[404463530,1770159038829,-500.0,0.00013698,2]
[404463532,1770159038839,-500.0,0.00013698,2]
[404463534,1770159038848,-500.0,0.00013698,2]
[404463536,1770159038857,-500.0,0.00013698,2]
[404463538,1770159038867,-500.0,0.00013698,2]
[404463540,1770159038876,-500.0,0.00013698,2]
[404463542,1770159038885,-500.0,0.00013698,2]
[404463544,1770159038895,-502.5925885,0.00013698,2]
[404463546,1770159038904,-1244.42,0.00013698,2]
[404463548,1770159038914,-1244.42,0.00013698,2]
[404463550,1770159038922,-1244.42,0.00013698,2]
[404463552,1770159038931,-1244.42,0.00013698,2]
[404463554,1770159038941,-1244.42,0.00013698,2]
[404463556,1770159038950,-1244.42,0.00013698,2]
[404463558,1770159038960,-1244.42,0.00013698,2]
[404463559,1770159038971,-1244.42,0.00013698,2]
[404463561,1770159038981,-1244.42,0.00013698,2]
[404463563,1770159038990,-1244.42,0.00013698,2]
[404463565,1770159038999,-1244.42,0.00013698,2]
[404463567,1770159039009,-1244.42,0.00013698,2]
[404463569,1770159039019,-1244.42,0.00013698,2]
[404463572,1770159039028,-1244.42,0.00013698,2]
[404463573,1770159039039,-1244.42,0.00013698,2]
[404463575,1770159039049,-500.0,0.00013698,2]
[404463577,1770159039058,-500.0,0.00013698,2]
[404463579,1770159039067,-500.0,0.00013698,2]
[404463582,1770159039076,-500.0,0.00013698,2]
[404463584,1770159039086,-500.0,0.00013698,2]
[404463585,1770159039095,-500.0,0.00013698,2]
[404463588,1770159039105,-500.0,0.00013698,2]
[404463589,1770159039115,-500.0,0.00013698,2]
[404463592,1770159039124,-500.0,0.00013698,2]
[404463593,1770159039134,-500.0,0.00013698,2]
[404463596,1770159039143,-500.0,0.00013698,2]
[404463597,1770159039152,-500.0,0.00013698,2]
[404463599,1770159039161,-500.0,0.00013698,2]
[404463601,1770159039170,-500.0,0.00013698,2]
[404463604,1770159039179,-500.0,0.00013698,2]
[404463605,1770159039188,-500.0,0.00013698,2]
[404463607,1770159039198,-500.0,0.00013698,2]
[404463609,1770159039208,-154.17727181,0.00013698,2]
[404463611,1770159039219,-508.48,0.00013698,2]
[404463614,1770159039228,-508.48,0.00013698,2]
[404463616,1770159039239,-508.48,0.00013698,2]
[404463617,1770159039249,-508.48,0.00013698,2]
[404463620,1770159039259,-508.48,0.00013698,2]
[404463621,1770159039268,-508.48,0.00013698,2]
[404463624,1770159039277,-508.48,0.00013698,2]
[404463626,1770159039287,-508.48,0.00013698,2]
[404463628,1770159039297,-508.48,0.00013698,2]
[404463629,1770159039305,-508.48,0.00013698,2]
[404463632,1770159039315,-508.48,0.00013698,2]
[404463634,1770159039325,-508.48,0.00013698,2]
[404463635,1770159039334,-508.48,0.00013698,2]
[404463637,1770159039343,-508.48,0.00013698,2]
[404463639,1770159039353,-508.48,0.00013698,2]
[404463641,1770159039362,-611.06,0.00013698,2]
[404463643,1770159039371,-500.0,0.00013698,2]
[404463645,1770159039381,-500.0,0.00013698,2]
[404463647,1770159039391,-500.0,0.00013698,2]
[404463649,1770159039400,-500.0,0.00013698,2]
[404463651,1770159039410,-500.0,0.00013698,2]
[404463653,1770159039419,-500.0,0.00013698,2]
[404463655,1770159039428,-505.36940951,0.00013698,2]
[404463657,1770159039437,-557.52989048,0.00013698,2]
[404463659,1770159039446,-500.0,0.00013698,2]
[404463661,1770159039456,-500.0,0.00013698,2]
[404463663,1770159039466,-500.0,0.00013698,2]
[404463665,1770159039475,-500.0,0.00013698,2]
[404463667,1770159039485,-500.0,0.00013698,2]
[404463669,1770159039494,-500.0,0.00013698,2]
[404463671,1770159039503,-500.0,0.00013698,2]
[404463673,1770159039512,-411.72693123,0.00013698,2]
[404463675,1770159039523,-527.84,0.00013698,2]
[404463677,1770159039532,-527.84,0.00013698,2]
[404463678,1770159039543,-527.84,0.00013698,2]
[404463680,1770159039553,-527.84,0.00013698,2]
[404463682,1770159039562,-527.84,0.00013698,2]
[404463684,1770159039571,-527.84,0.00013698,2]
[404463686,1770159039580,-527.84,0.00013698,2]
[404463688,1770159039590,-527.84,0.00013698,2]
[404463690,1770159039599,-527.84,0.00013698,2]
[404463691,1770159039609,-527.84,0.00013698,2]
[404463692,1770159039618,-527.84,0.00013698,2]
[404463693,1770159039627,-527.84,0.00013698,2]
[404463694,1770159039636,-527.84,0.00013698,2]
[404463695,1770159039646,-527.84,0.00013698,2]
[404463696,1770159039655,-527.84,0.00013698,2]
[404463697,1770159039664,-971.1,0.00013698,2]
[404463698,1770159039674,-971.1,0.00013698,2]
[404463699,1770159039687,-971.1,0.00013698,2]
[404463701,1770159039696,-971.1,0.00013698,2]
[404463702,1770159039900,-971.1,0.00013698,2]
[404463703,1770159039910,-971.1,0.00013698,2]
[404463704,1770159039919,-971.1,0.00013698,2]
[404463705,1770159039928,-971.1,0.00013698,2]
[404463706,1770159039937,-971.1,0.00013698,2]
[404463707,1770159039947,-971.1,0.00013698,2]
[404463708,1770159039957,-971.1,0.00013698,2]
[404463709,1770159039970,-971.1,0.00013698,2]
[404463710,1770159039979,-971.1,0.00013698,2]
[404463711,1770159039989,-971.1,0.00013698,2]
[404463712,1770159039998,-971.1,0.00013698,2]
[404463713,1770159040008,-500.0,0.00013698,2]
[404463714,1770159040018,-500.0,0.00013698,2]
[404463715,1770159040027,-500.0,0.00013698,2]
[404463716,1770159040037,-500.0,0.00013698,2]
[404463717,1770159040047,-500.0,0.00013698,2]
[404463718,1770159040056,-595.81274949,0.00013698,2]
[404463719,1770159040066,-500.0,0.00013698,2]
[404463720,1770159040075,-500.0,0.00013698,2]
[404463721,1770159040084,-500.0,0.00013698,2]
[404463722,1770159040093,-500.0,0.00013698,2]
[404463723,1770159040102,-500.0,0.00013698,2]
[404463724,1770159040112,-500.0,0.00013698,2]
[404463725,1770159040122,-500.0,0.00013698,2]
[404463726,1770159040131,-500.0,0.00013698,2]
[404463727,1770159040140,-500.0,0.00013698,2]
[404463728,1770159040150,-500.0,0.00013698,2]
[404463729,1770159040159,-500.0,0.00013698,2]
[404463730,1770159040168,-513.99007115,0.00013698,2]
[404463731,1770159040177,-500.0,0.00013698,2]
[404463732,1770159040186,-500.0,0.00013698,2]
[404463733,1770159040195,-500.0,0.00013698,2]
[404463734,1770159040205,-500.0,0.00013698,2]
[404463735,1770159040215,-500.0,0.00013698,2]
[404463736,1770159040224,-500.0,0.00013698,2]
[404463737,1770159040234,-500.0,0.00013698,2]
[404463738,1770159040244,-500.0,0.00013698,2]
[404463739,1770159040254,-500.0,0.00013698,2]
[404463740,1770159040264,-558.31479011,0.00013698,2]
[404463742,1770159040273,-500.0,0.00013698,2]
[404463744,1770159040282,-500.0,0.00013698,2]
[404463746,1770159040291,-495.99852835,0.00013698,2]
[404463748,1770159040301,-636.0817044,0.00013726,2]
[404463750,1770159040311,-160.0,0.00013858,2]
[404463751,1770159040320,-611.06,0.00013972,2]
[404463752,1770159040329,-1244.42,0.00014155,2]
[404463753,1770159040338,-500.0,0.00014155,2]
[404463754,1770159040347,-508.48,0.00014155,2]
[404463756,1770159040356,-527.84,0.00014155,2]
[404463757,1770159040365,-611.06,0.00014246,2]
[404463758,1770159040374,-611.06,0.0001452,2]
[404463759,1770159040384,-150.0,0.00014537,2]
[404463760,1770159040393,-636.0817044,0.0001477,2]
[404463761,1770159040403,-611.06,0.00014794,2]
[404463762,1770159040413,-155.17651474,0.000149,2]
[404463763,1770159040423,-500.0,0.00014999,2]
[404463764,1770159040434,-500.0,0.00014999,2]
[404463765,1770159040445,-500.0,0.00014999,2]
[404463766,1770159040454,-250.0,0.00015,2]
[404463767,1770159040464,-611.06,0.00015068,2]
[404463768,1770159040473,-611.06,0.00015342,2]
[404463769,1770159040482,-500.0,0.0001537,2]
[404463770,1770159040491,-611.06,0.00015616,2]
[404463771,1770159040500,-721.12765535,0.00015629,2]
[404463772,1770159040510,-200.0,0.00015629,2]
[404463773,1770159040519,-1428.38747117,0.00015629,2]
[404463774,1770159040528,-163.12428816,0.00015629,2]
[404463775,1770159040537,-209.40437684,0.00015629,2]
[404463776,1770159040546,-322.6107,0.00015629,2]
[404463777,1770159040556,-277.35679052,0.00015629,2]
[404463778,1770159040565,-500.0,0.00015629,2]
[404463779,1770159040573,-500.0,0.00015629,2]
[404463780,1770159040583,-500.0,0.00015629,2]
[404463781,1770159040592,-500.0,0.00015629,2]
[404463782,1770159040600,-500.0,0.00015629,2]
[404463783,1770159040609,-500.0,0.00015629,2]
[404463784,1770159040619,-500.0,0.00015629,2]
[404463785,1770159040627,-500.0,0.00015629,2]
[404463786,1770159040637,-500.0,0.00015629,2]
[404463787,1770159040645,-500.0,0.00015629,2]
[404463788,1770159040655,-209.40437684,0.00015629,2]
[404463789,1770159040664,-500.0,0.00015629,2]
[404463790,1770159040672,-217.15233878,0.00015684,2]
[404463791,1770159040681,-225.18697532,0.00015739,2]
[404463792,1770159040690,-233.51889341,0.00015794,2]
[404463793,1770159040699,-636.0817044,0.00015813,2]
[404463794,1770159040708,-242.15909246,0.00015849,2]
[404463795,1770159040719,-611.06,0.0001589,2]
[404463796,1770159040728,-251.11897888,0.00015904,2]
[404463797,1770159040737,-260.4103811,0.00015959,2]
[404463798,1770159040746,-900.0,0.00015989,2]
[404463799,1770159040755,-500.0,0.00015999,2]
[404463800,1770159040765,-500.0,0.00015999,2]
[404463801,1770159040775,-500.0,0.00015999,2]